Workbook

Sheet Profit_Loss
B3: Level 2 - Money 2 (Profit & Loss and HP) Created by Mr.Lafferty@mathsrevision.com
AM4: =ROUND(RAND()*(4-1)+1,0) -> 2 | AN4: 1 | AO4: 10
AF5: =AO8 -> 25 | AG5: % | AN5: 2 | AO5: 25
B6: ="Q1. Paul buys at TV which normally costs £"&AF6&". There is currently a "&AF5&"% discount on the TV." -> Q1. Paul buys at TV which normally costs £570. There is currently a 25% discount on the TV. | AF6: =ROUND(RAND()*(90-40)+40,0)*10 -> 570 | AN6: 3 | AO6: 50
AF7: =AF6-(AF5/100*AF6) -> 427.5 | AN7: 4 | AO7: 75
C8: How much will Paul pay ? | M8: £ | AO8: =LOOKUP(AM4,AN4:AN7,AO4:AO7) -> 25
AF10: =AG10*AO14 -> 100 | AG10: =ROUND(RAND()*(5-2)+2,0) -> 2 | AM10: =ROUND(RAND()*(4-1)+1,0) -> 3 | AN10: 1 | AO10: 10
B11: ="Q2. Monica bought a box of wine glasses for £"&AF10&". The box contains "&AF11&" glasses." -> Q2. Monica bought a box of wine glasses for £100. The box contains 50 glasses. | AF11: =AO14 -> 50 | AG11: =AG10+ROUND(RAND()*(5-2)+2,0) -> 6 | AN11: 2 | AO11: 25
C12: ="She sells each glass for £"&AG11&"." -> She sells each glass for £6. | AF12: =AG12-AF10 -> 200 | AG12: =AG11*AF11 -> 300 | AN12: 3 | AO12: 50
AN13: 4 | AO13: 75
C14: How much PROFIT did she make ? | M14: £ | AO14: =LOOKUP(AM10,AN10:AN13,AO10:AO13) -> 50
B17: ="Q3. Mia bought a house for £"&AF18&"." -> Q3. Mia bought a house for £110760.
AF18: =ROUND(RAND()*(500-90)+90,2)*1000 -> 110760 | AG18: cost | AM18: =ROUND(RAND()*(4-1)+1,0) -> 2 | AN18: 1 | AO18: 5
C19: ="A year later she sold it for £"&TEXT(AF20,"0.00")&"." -> A year later she sold it for £99684.00. | AF19: =AO22/100*AF18 -> 11076 | AN19: 2 | AO19: 10
AF20: =AF18-AF19 -> 99684 | AN20: 3 | AO20: 15
AN21: 4 | AO21: 20
C22: How much was her LOSS ? | M22: £ | AO22: =LOOKUP(AM18,AN18:AN21,AO18:AO21) -> 10
AF24: =ROUND(RAND()*(25-12)+12,0)*1000 -> 25000
B25: Q4. Daniel buys a new car using Hire Purchase. | Q25: Years | T25: Monthly Payment | AF25: =ROUND(RAND()*(5-3)+3,0) -> 5 | AG25: =AF25*12 -> 60
C26: ="The cash price was £"&AF24&"." -> The cash price was £25000. | Q26: =AF25 -> 5 | T26: ="£"&AF26 -> £417 | AF26: =ROUNDUP(AF24/AG25,0) -> 417 | AG26: monthly
AF27: =10/100*AF24 -> 2500
C28: He must pay a 10% deposit and then the payments in the table shown. | AF28: =AF27+AF26*AG25 -> 27520
AF29: =ROUND(RAND()*(30-12)+12,0)*100 -> 2500
C30: How much more did he pay using HP. | M30: £ | AF30: =(AF28+AF29)-AF24 -> 5020

Sheet Foreign_Exchange
B3: Level 2 - Money 2 (Foreign Exchange) Created by Mr.Lafferty@mathsrevision.com
AF5: =ROUND(RAND()*(2.45-1.15)+1.15,2) -> 1.31 | AG5: exchange rate
B6: ="Q1. Kyle is going to Spain on holiday and wants to exchange £"&AF6&" into euros." -> Q1. Kyle is going to Spain on holiday and wants to exchange £400 into euros. | W6: Exchange Rate | AF6: =ROUND(RAND()*(90-40)+40,0)*10 -> 400
W7: =M8&TEXT(AF5,"0.00")&" to the £" -> €1.31 to the £ | AF7: =AF5*AF6 -> 524
C8: How many euros will he receive ? | M8: €
AF10: =ROUND(RAND()*(2.45-1.15)+1.15,2) -> 1.18 | AG10: exchange rate
B11: ="Q2. Wiktoria is coming over from Poland to Scotland on holiday." -> Q2. Wiktoria is coming over from Poland to Scotland on holiday. | W11: Exchange Rate | AF11: =ROUND(RAND()*(90-40)+40,0)*10 -> 740
C12: ="She needs to exchange "&M8&TEXT(AF12,"0.00")&" in £'s." -> She needs to exchange €873.20 in £'s. | W12: =M8&TEXT(AF10,"0.00")&" to the £" -> €1.18 to the £ | AF12: =AF10*AF11 -> 873.2
C14: How many pounds will she receive ? | M14: £
B17: ="Q3. While on holiday Linda bought a iphone in New York for "&AF21&TEXT(AF20,"0.00")&"." -> Q3. While on holiday Linda bought a iphone in New York for $1169.60.
C18: ="Back home in Scotland she could buy the same iphone for £"&AF23&"." -> Back home in Scotland she could buy the same iphone for £735. | AF18: =ROUND(RAND()*(2.45-1.15)+1.15,2) -> 1.72 | AG18: exchange rate
W19: Exchange Rate | AF19: =ROUND(RAND()*(90-40)+40,0)*10 -> 680
C20: =AH22 -> How much did she save buying it in New York. | W20: =AF21&TEXT(AF18,"0.00")&" to the £" -> $1.72 to the £ | AF20: =AF18*AF19 -> 1169.6
AF21: $
M22: £ | AF22: =ROUND(RAND()*(70-10)+10,0) -> 55 | AG22: =ROUND(RAND()*(1-0)+0,0) -> 0 | AH22: =IF(AG22=1,"How much could she have saved buying it in Scotland.","How much did she save buying it in New York.") -> How much did she save buying it in New York.
AF23: =IF(AG22=1,AF19-AF22,AF19+AF22) -> 735
B25: ="Q4. John lives in Paris and is going on a 3 day trip to Glasgow before going to New York." -> Q4. John lives in Paris and is going on a 3 day trip to Glasgow before going to New York.
C26: ="He exchanged "&M8&TEXT(AF28,"0.00")&" to pounds." -> He exchanged €4752.00 to pounds. | AF26: =ROUND(RAND()*(2.45-1.15)+1.15,2) -> 2.16 | AG26: exchange rate
W27: Exchange Rate | AF27: =ROUND(RAND()*(300-150)+150,0)*10 -> 2200
C28: ="How much did he get in pounds." -> How much did he get in pounds. | W28: =M8&TEXT(AF26,"0.00")&" to the £" -> €2.16 to the £ | AF28: =AF26*AF27 -> 4752
AF29: =ROUND(RAND()*(50-11)+11,0)*10 -> 500
M30: £ | AF30: =ROUND(RAND()*(70-10)+10,0) -> 57
AF31: =IF(AG30=1,AF27-AF30,AF27+AF30) -> 2257
C32: ="While in Glasgow he spent £"&AF29&"." -> While in Glasgow he spent £500.
AF33: =ROUND(RAND()*(2.45-1.15)+1.15,2) -> 1.72 | AG33: exchange rate
W34: Exchange Rate | AF34: =AF27-AF29 -> 1700
C35: How many dollars and cents did he have when he arrived in New York. | W35: =M37&TEXT(AF33,"0.00")&" to the £" -> $1.72 to the £ | AF35: =AF33*AF34 -> 2924
M37: $

Sheet Best_Buys
B2: Level 2 - Money 2 (Best Deals) Created by Mr.Lafferty@mathsrevision.com
AZ7: =12*ROUND(RAND()*(17-7)+7,0)/100 -> 0.96 | BA7: Full supermarket 1 | BG7: =AZ7 -> 0.96
C8: Q1. | E8: Owen visits two supermarkets Prescos and Basda which have special deals on IRN - BRU. | AZ8: =ROUND(RAND()*(4-2)+2,0) -> 3 | BA8: Fraction Discount
E10: From which supermarket should he buy the IRN - BRU from OR are they both the same price.
AZ11: =AZ7/AZ8*(AZ8-1) -> 0.64 | BA11: Sale Price 1
E12: Pescos : Deal price is £ | AZ12: =ROUND(RAND()*(1-0)+0,0) -> 1
AZ13: =ROUND(IF(AZ12=0,(AZ11+ROUND(RAND()*(0.03-0.01)+0.01,2)),AZ11-(ROUND(RAND()*(0.03-0.01)+0.01,2))),2) -> 0.62
E14: Basda : Deal price is £ | AZ14: =ROUND(RAND()*(4-1)+1,0)*10 -> 10 | BA14: % discount super2 | BG14: =ROUND(100/AZ15*AZ13,1) -> 0.7 | BH14: Full supermarket 2
AZ15: =100-AZ14 -> 90 | BG15: =AZ14/100*BG14 -> 0.07 | BH15: Discount
AB16: 500 ml | AJ16: 500 ml | BG16: =BG14-BG15 -> 0.63 | BH16: Sale Price 2
Y18: ="Pesco's 1" -> Pesco's 1 | AI18: ="Basda 2" -> Basda 2
Y19: Normal Price £ | AE19: =AZ7 -> 0.96 | AI19: Normal Price £ | AO19: =BG14 -> 0.7
Y20: ="Now 1/"&AZ8&" OFF" -> Now 1/3 OFF | AI20: ="Now "&AZ14&" % OFF" -> Now 10 % OFF
AZ23: =12*ROUND(RAND()*(30-7)+7,0)/100 -> 3.48 | BA23: Full supermarket 1 | BG23: =AZ23 -> 3.48
C24: Q2. | E24: Caitlin visits two supermarkets Norrison and Sainsburgh which have special deals on Oranges. | AZ24: =ROUND(RAND()*(4-2)+2,0) -> 3 | BA24: Fraction Discount
AZ25: =AZ23/AZ24*(AZ24-1) -> 2.32 | BA25: Sale Price 1
E26: From which supermarket should she buy the Oranges from OR are they both the same price.
E28: Norrison : Deal price is £ | AZ28: =ROUND(RAND()*(1-0)+0,0) -> 0
AZ29: =ROUND(IF(AZ28=0,(AZ25+ROUND(RAND()*(0.03-0.01)+0.01,2)),AZ25-(ROUND(RAND()*(0.03-0.01)+0.01,2))),2) -> 2.33
E30: Sainsburgh : Deal price is £ | AZ30: =ROUND(RAND()*(4-1)+1,0)*10 -> 30 | BA30: % discount super2 | BG30: =ROUND(100/AZ31*AZ29,1) -> 3.3 | BH30: Full supermarket 2
AZ31: =100-AZ30 -> 70 | BG31: =AZ30/100*BG30 -> 0.99 | BH31: Discount
Y32: A bag of 5 oranges | AI32: A bag of 5 oranges | BG32: =BG30-BG31 -> 2.31 | BH32: Sale Price 2
Y34: ="Supermarket 1" -> Supermarket 1 | AI34: ="Supermarket 2" -> Supermarket 2
Y35: Was £ | AE35: =AZ23 -> 3.48 | AI35: Was £ | AO35: =BG30 -> 3.3
Y36: ="Now 1/"&AZ24&" OFF" -> Now 1/3 OFF | AI36: ="Now "&AZ30&" % OFF" -> Now 30 % OFF
AZ39: =ROUND(RAND()*(2-0.8)+0.8,1)*2 -> 2 | BA39: Full supermarket 1 | BG39: =AZ39 -> 2
C40: Q3. | E40: Aimee visits two shops Niceland and Auldi which have special deals on oven chips.. | AZ40: =ROUND(RAND()*(8-2)+2,0)*5 -> 15 | BA40: Fraction Discount
AZ41: =AZ39-AZ40/100*AZ39 -> 1.7 | BA41: Sale Price 1
E42: From which shop should she buy the oven chips from OR are they both the same price.
E44: Norrison : Deal price is £ | AZ44: =ROUND(RAND()*(1-0)+0,0) -> 0
AZ45: =ROUND(IF(AZ44=0,(AZ41+ROUND(RAND()*(0.03-0.01)+0.01,2)),AZ41-(ROUND(RAND()*(0.03-0.01)+0.01,2))),2) -> 1.71
E46: Sainsburgh : Deal price is £ | AZ46: =ROUND(RAND()*(4-1)+1,0)*10 -> 20 | BA46: % discount super2 | BG46: =ROUND(100/AZ47*AZ45,1) -> 2.1 | BH46: Full supermarket 2
AZ47: =100-AZ46 -> 80 | BG47: =AZ46/100*BG46 -> 0.42 | BH47: Discount
Y48: 2.25 kg bag | AI48: 2.25 kg bag | BG48: =BG46-BG47 -> 1.68 | BH48: Sale Price 2
Y50: ="Shop 1" -> Shop 1 | AI50: ="Shop 2" -> Shop 2
Y51: Was £ | AE51: =AZ39 -> 2 | AI51: Was £ | AO51: =BG46 -> 2.1
Y52: ="Now "&AZ40&" % OFF" -> Now 15 % OFF | AI52: ="Now "&AZ46&" % OFF" -> Now 20 % OFF
